[Event "Titled Tuesday Blitz January 17 Early 2023"]
[White "Cepo, Toni"]
[Black "Nugumanov, Bakhtiyar"]
[WhiteFideId "4675916"]
[BlackFideId "13701797"]
[WhiteElo "2145"]
[BlackElo "2316"]
[Result "1-0"]
[Round "04"]
[TimeControl "180+2"]
[Date "2023.01.17"]
[WhiteClock "0:00:54"]
[BlackClock "0:00:02"]

1. e4 {[%clk 0:02:33]}  d6 {[%clk 0:02:59]} 2. d4 {[%clk 0:02:32]}  Nf6 {[%clk 0:02:59]} 3. Nc3 {[%clk 0:02:33]}  e5 {[%clk 0:02:59]} 4. dxe5 {[%clk 0:02:33]}  dxe5 {[%clk 0:02:59]} 5. Qxd8+ {[%clk 0:02:33]}  Kxd8 {[%clk 0:03:00]} 6. Bg5 {[%clk 0:02:34]}  Be6 {[%clk 0:02:56]} 7. O-O-O+ {[%clk 0:02:33]}  Nd7 {[%clk 0:02:56]} 8. Nf3 {[%clk 0:02:31]}  Bd6 {[%clk 0:02:43]} 9. Nb5 {[%clk 0:02:28]}  Ke7 {[%clk 0:02:43]} 10. Bd3 {[%clk 0:02:11]}  Nc5 {[%clk 0:02:35]} 11. Nxd6 {[%clk 0:02:07]}  cxd6 {[%clk 0:02:36]} 12. Kb1 {[%clk 0:02:05]}  h6 {[%clk 0:02:19]} 13. Bxf6+ {[%clk 0:02:04]}  gxf6 {[%clk 0:02:20]} 14. Nh4 {[%clk 0:01:58]}  Rac8 {[%clk 0:01:51]} 15. f3 {[%clk 0:01:53]}  Rhg8 {[%clk 0:01:49]} 16. g3 {[%clk 0:01:51]}  Rgd8 {[%clk 0:01:04]} 17. Rhe1 {[%clk 0:01:46]}  Nxd3 {[%clk 0:00:54]} 18. Rxd3 {[%clk 0:01:44]}  d5 {[%clk 0:00:40]} 19. exd5 {[%clk 0:01:38]}  Rxd5 {[%clk 0:00:40]} 20. Nf5+ {[%clk 0:01:35]}  Kd7 {[%clk 0:00:30]} 21. Red1 {[%clk 0:01:27]}  Rc5 {[%clk 0:00:15]} 22. Nxh6 {[%clk 0:01:11]}  Ke7 {[%clk 0:00:07]} 23. Rxd5 {[%clk 0:01:02]}  Rxd5 {[%clk 0:00:08]} 24. Rxd5 {[%clk 0:01:03]}  Bxd5 {[%clk 0:00:08]} 25. Nf5+ {[%clk 0:01:04]}  Ke6 {[%clk 0:00:08]} 26. Nh4 {[%clk 0:01:04]}  f5 {[%clk 0:00:08]} 27. Kc1 {[%clk 0:01:02]}  Kf6 {[%clk 0:00:07]} 28. a3 {[%clk 0:01:01]}  Kg5 {[%clk 0:00:07]} 29. Kd2 {[%clk 0:01:02]}  f4 {[%clk 0:00:07]} 30. Ke2 {[%clk 0:01:01]}  f5 {[%clk 0:00:06]} 31. Ng2 {[%clk 0:00:59]}  fxg3 {[%clk 0:00:04]} 32. hxg3 {[%clk 0:01:00]}  f4 {[%clk 0:00:03]} 33. gxf4+ {[%clk 0:00:59]}  exf4 {[%clk 0:00:04]} 34. Ne1 {[%clk 0:00:59]}  Kh4 {[%clk 0:00:03]} 35. Kf2 {[%clk 0:00:58]}  Bc6 {[%clk 0:00:02]} 36. Nd3 {[%clk 0:00:58]}  Kg5 {[%clk 0:00:03]} 37. Ne5 {[%clk 0:00:59]}  Bd5 {[%clk 0:00:02]} 38. c4 {[%clk 0:00:58]}  Be6 {[%clk 0:00:02]} 39. c5 {[%clk 0:00:59]}  Kf5 {[%clk 0:00:03]} 40. Nd3 {[%clk 0:00:59]}  Bc4 {[%clk 0:00:02]} 41. Nc1 {[%clk 0:00:55]}  Bb5 {[%clk 0:00:01]} 42. b4 {[%clk 0:00:54]}  a6 {[%clk 0:00:02]} 43. Ne2 {[%clk 0:00:54]} 1-0


[Site "https://www.chess.com"]

[Event "Titled Tuesday Blitz January 17 Early 2023"]
[White "Manon-og, Ramon Jr."]
[Black "Jimenez Fernandez, Rebeca"]
[WhiteFideId "5200776"]
[BlackFideId "32070934"]
[WhiteElo "1999"]
[BlackElo "2069"]
[Result "1-0"]
[Round "04"]
[TimeControl "180+2"]
[Date "2023.01.17"]
[WhiteClock "0:01:48"]
[BlackClock "0:02:04"]

1. e4 {[%clk 0:02:14]}  g6 {[%clk 0:02:57]} 2. d4 {[%clk 0:02:12]}  Bg7 {[%clk 0:02:58]} 3. Nf3 {[%clk 0:02:12]}  d6 {[%clk 0:02:58]} 4. Nc3 {[%clk 0:02:12]}  a6 {[%clk 0:02:58]} 5. a4 {[%clk 0:02:11]}  Nd7 {[%clk 0:02:56]} 6. Bc4 {[%clk 0:02:11]}  e6 {[%clk 0:02:54]} 7. Bg5 {[%clk 0:02:10]}  Ne7 {[%clk 0:02:53]} 8. Qd2 {[%clk 0:02:09]}  c5 {[%clk 0:02:41]} 9. O-O {[%clk 0:01:59]}  O-O {[%clk 0:02:35]} 10. Rad1 {[%clk 0:01:56]}  cxd4 {[%clk 0:02:16]} 11. Nxd4 {[%clk 0:01:56]}  Nc5 {[%clk 0:02:08]} 12. Rfe1 {[%clk 0:01:52]}  b6 {[%clk 0:02:06]} 13. Nc6 {[%clk 0:01:49]}  Nxc6 {[%clk 0:02:04]} 14. Bxd8 {[%clk 0:01:48]} 1-0


[Site "https://www.chess.com"]

[Event "Titled Tuesday Blitz January 17 Early 2023"]
[White "Sovetbekova, Nurai"]
[Black "Levine, David"]
[WhiteFideId "13801910"]
[BlackFideId "2011611"]
[WhiteElo "1764"]
[BlackElo "2040"]
[Result "1-0"]
[Round "04"]
[TimeControl "180+2"]
[Date "2023.01.17"]
[WhiteClock "0:01:14"]
[BlackClock "0:00:47"]

1. d4 {[%clk 0:03:00]}  d5 {[%clk 0:02:59]} 2. c4 {[%clk 0:03:01]}  dxc4 {[%clk 0:02:59]} 3. e4 {[%clk 0:03:00]}  Nf6 {[%clk 0:02:57]} 4. Nc3 {[%clk 0:02:52]}  e5 {[%clk 0:02:55]} 5. Nf3 {[%clk 0:02:46]}  Bg4 {[%clk 0:02:42]} 6. Bxc4 {[%clk 0:02:35]}  Bxf3 {[%clk 0:02:29]} 7. Qxf3 {[%clk 0:02:36]}  exd4 {[%clk 0:02:25]} 8. e5 {[%clk 0:02:14]}  dxc3 {[%clk 0:02:22]} 9. exf6 {[%clk 0:02:13]}  Qxf6 {[%clk 0:01:50]} 10. Qxb7 {[%clk 0:01:59]}  Bc5 {[%clk 0:01:20]} 11. O-O {[%clk 0:01:44]}  O-O {[%clk 0:01:15]} 12. Qxa8 {[%clk 0:01:33]}  cxb2 {[%clk 0:01:14]} 13. Bxb2 {[%clk 0:01:26]}  Qxb2 {[%clk 0:01:14]} 14. Rab1 {[%clk 0:01:24]}  Bxf2+ {[%clk 0:01:12]} 15. Kh1 {[%clk 0:01:18]}  Qd4 {[%clk 0:00:47]} 16. Rxb8 {[%clk 0:01:14]} 1-0


[Site "https://www.chess.com"]

[Event "Titled Tuesday Blitz January 17 Early 2023"]
[White "Winkels, Marcel"]
[Black "Zaksaite, Salomeja"]
[WhiteFideId "1003887"]
[BlackFideId "12801496"]
[WhiteElo "1960"]
[BlackElo "2283"]
[Result "1-0"]
[Round "04"]
[TimeControl "180+2"]
[Date "2023.01.17"]
[WhiteClock "0:00:48"]
[BlackClock "0:00:01"]

1. e4 {[%clk 0:03:00]}  c5 {[%clk 0:02:59]} 2. Nf3 {[%clk 0:03:00]}  e6 {[%clk 0:02:59]} 3. g3 {[%clk 0:02:57]}  Nc6 {[%clk 0:02:55]} 4. Bg2 {[%clk 0:02:57]}  Nf6 {[%clk 0:02:55]} 5. d3 {[%clk 0:02:45]}  Be7 {[%clk 0:02:25]} 6. O-O {[%clk 0:02:42]}  O-O {[%clk 0:02:23]} 7. e5 {[%clk 0:02:36]}  Nd5 {[%clk 0:02:21]} 8. c4 {[%clk 0:02:35]}  Nc7 {[%clk 0:02:20]} 9. Nc3 {[%clk 0:02:33]}  d6 {[%clk 0:02:16]} 10. exd6 {[%clk 0:02:29]}  Bxd6 {[%clk 0:02:15]} 11. Ne4 {[%clk 0:02:30]}  Be7 {[%clk 0:02:15]} 12. h4 {[%clk 0:02:26]}  b6 {[%clk 0:02:12]} 13. Be3 {[%clk 0:02:24]}  Bb7 {[%clk 0:02:12]} 14. Nfg5 {[%clk 0:02:18]}  f5 {[%clk 0:01:00]} 15. Nc3 {[%clk 0:02:10]}  Bf6 {[%clk 0:01:00]} 16. Nb5 {[%clk 0:01:54]}  Bxb2 {[%clk 0:00:16]} 17. Rb1 {[%clk 0:01:52]}  Bf6 {[%clk 0:00:16]} 18. Nxc7 {[%clk 0:01:50]}  Qxc7 {[%clk 0:00:16]} 19. Nxe6 {[%clk 0:01:50]}  Qd6 {[%clk 0:00:13]} 20. Nxf8 {[%clk 0:01:49]}  Rxf8 {[%clk 0:00:14]} 21. Bf4 {[%clk 0:01:41]}  Qd7 {[%clk 0:00:14]} 22. Bd5+ {[%clk 0:01:40]}  Kh8 {[%clk 0:00:14]} 23. Qf3 {[%clk 0:01:35]}  Rd8 {[%clk 0:00:12]} 24. Rbd1 {[%clk 0:01:31]}  Nd4 {[%clk 0:00:11]} 25. Qg2 {[%clk 0:01:29]}  Ne2+ {[%clk 0:00:10]} 26. Kh2 {[%clk 0:01:28]}  Nxf4 {[%clk 0:00:10]} 27. gxf4 {[%clk 0:01:24]}  Bxd5 {[%clk 0:00:09]} 28. cxd5 {[%clk 0:01:18]}  Bxh4 {[%clk 0:00:08]} 29. Rfe1 {[%clk 0:01:11]}  Bf6 {[%clk 0:00:07]} 30. Re6 {[%clk 0:01:07]}  h6 {[%clk 0:00:06]} 31. Rde1 {[%clk 0:01:06]}  Qxd5 {[%clk 0:00:05]} 32. Re8+ {[%clk 0:01:04]}  Kh7 {[%clk 0:00:05]} 33. Qxd5 {[%clk 0:00:57]}  Rxd5 {[%clk 0:00:05]} 34. R1e3 {[%clk 0:00:53]}  a5 {[%clk 0:00:04]} 35. Rb8 {[%clk 0:00:52]}  Bd4 {[%clk 0:00:04]} 36. Ree8 {[%clk 0:00:49]}  a4 {[%clk 0:00:01]} 37. Kg2 {[%clk 0:00:48]} 1-0


[Site "https://www.chess.com"]

[Event "Titled Tuesday Blitz January 17 Early 2023"]
[White "Necula, Iulian"]
[Black "Dilmukhametov, Artur"]
[WhiteFideId "1232380"]
[BlackFideId "24179922"]
[WhiteElo "1851"]
[BlackElo "2276"]
[Result "0-1"]
[Round "04"]
[TimeControl "180+2"]
[Date "2023.01.17"]
[WhiteClock "0:00:16"]
[BlackClock "0:00:09"]

1. d4 {[%clk 0:03:00]}  Nf6 {[%clk 0:02:58]} 2. Nc3 {[%clk 0:03:00]}  g6 {[%clk 0:02:57]} 3. Bf4 {[%clk 0:02:59]}  Bg7 {[%clk 0:02:56]} 4. e3 {[%clk 0:02:59]}  d6 {[%clk 0:02:54]} 5. Nf3 {[%clk 0:02:57]}  O-O {[%clk 0:02:54]} 6. h3 {[%clk 0:02:57]}  Nbd7 {[%clk 0:02:53]} 7. Be2 {[%clk 0:02:52]}  Re8 {[%clk 0:02:51]} 8. d5 {[%clk 0:02:49]}  e5 {[%clk 0:02:51]} 9. dxe6 {[%clk 0:02:47]}  Rxe6 {[%clk 0:02:50]} 10. O-O {[%clk 0:02:40]}  b6 {[%clk 0:02:49]} 11. Bc4 {[%clk 0:02:38]}  Re8 {[%clk 0:02:48]} 12. Ng5 {[%clk 0:02:38]}  Re7 {[%clk 0:02:39]} 13. Re1 {[%clk 0:02:11]}  Bb7 {[%clk 0:02:38]} 14. e4 {[%clk 0:02:03]}  Ne5 {[%clk 0:02:16]} 15. Bxe5 {[%clk 0:02:02]}  dxe5 {[%clk 0:02:15]} 16. Qxd8+ {[%clk 0:02:01]}  Rxd8 {[%clk 0:02:16]} 17. Nd5 {[%clk 0:01:48]}  Nxd5 {[%clk 0:02:13]} 18. exd5 {[%clk 0:01:47]}  Bxd5 {[%clk 0:01:54]} 19. Rad1 {[%clk 0:01:45]}  Red7 {[%clk 0:01:49]} 20. Bd3 {[%clk 0:01:30]}  c5 {[%clk 0:01:37]} 21. b3 {[%clk 0:01:29]}  Bc6 {[%clk 0:01:32]} 22. Be2 {[%clk 0:01:21]}  Bh6 {[%clk 0:01:20]} 23. Nf3 {[%clk 0:01:11]}  Rxd1 {[%clk 0:01:10]} 24. Rxd1 {[%clk 0:01:11]}  Rxd1+ {[%clk 0:01:09]} 25. Bxd1 {[%clk 0:01:12]}  f6 {[%clk 0:01:01]} 26. Ne1 {[%clk 0:01:09]}  Bd2 {[%clk 0:00:59]} 27. Nd3 {[%clk 0:01:08]}  Kf7 {[%clk 0:00:57]} 28. Kf1 {[%clk 0:01:08]}  Ke6 {[%clk 0:00:55]} 29. g4 {[%clk 0:01:08]}  f5 {[%clk 0:00:52]} 30. Ke2 {[%clk 0:01:09]}  Bc3 {[%clk 0:00:48]} 31. gxf5+ {[%clk 0:01:09]}  gxf5 {[%clk 0:00:47]} 32. f3 {[%clk 0:01:07]}  e4 {[%clk 0:00:44]} 33. fxe4 {[%clk 0:01:05]}  fxe4 {[%clk 0:00:43]} 34. Nf2 {[%clk 0:01:06]}  Kf5 {[%clk 0:00:41]} 35. Ng4 {[%clk 0:01:06]}  Kf4 {[%clk 0:00:38]} 36. Ne3 {[%clk 0:01:07]}  Bd7 {[%clk 0:00:37]} 37. h4 {[%clk 0:01:05]}  Bd4 {[%clk 0:00:32]} 38. Ng2+ {[%clk 0:01:05]}  Kg3 {[%clk 0:00:30]} 39. Kf1 {[%clk 0:01:06]}  Bf6 {[%clk 0:00:28]} 40. h5 {[%clk 0:01:05]}  h6 {[%clk 0:00:27]} 41. Ne3 {[%clk 0:01:04]}  Bg5 {[%clk 0:00:24]} 42. Nd5 {[%clk 0:01:03]}  e3 {[%clk 0:00:19]} 43. b4 {[%clk 0:01:02]}  Bg4 {[%clk 0:00:18]} 44. Bxg4 {[%clk 0:01:01]}  Kxg4 {[%clk 0:00:17]} 45. Ke2 {[%clk 0:01:02]}  Kxh5 {[%clk 0:00:16]} 46. bxc5 {[%clk 0:01:02]}  bxc5 {[%clk 0:00:17]} 47. a4 {[%clk 0:01:02]}  Kg4 {[%clk 0:00:17]} 48. Nxe3+ {[%clk 0:00:23]}  Bxe3 {[%clk 0:00:15]} 49. Kxe3 {[%clk 0:00:23]}  Kg3 {[%clk 0:00:13]} 50. a5 {[%clk 0:00:20]}  h5 {[%clk 0:00:13]} 51. Ke2 {[%clk 0:00:21]}  Kg2 {[%clk 0:00:12]} 52. Kd3 {[%clk 0:00:18]}  h4 {[%clk 0:00:11]} 53. Kc4 {[%clk 0:00:19]}  h3 {[%clk 0:00:11]} 54. Kxc5 {[%clk 0:00:19]}  h2 {[%clk 0:00:12]} 55. Kc6 {[%clk 0:00:19]}  h1=Q {[%clk 0:00:13]} 56. Kb7 {[%clk 0:00:19]}  Qh7+ {[%clk 0:00:12]} 57. Ka6 {[%clk 0:00:19]}  Kf3 {[%clk 0:00:12]} 58. c4 {[%clk 0:00:20]}  Ke4 {[%clk 0:00:12]} 59. c5 {[%clk 0:00:21]}  Kd5 {[%clk 0:00:12]} 60. c6 {[%clk 0:00:22]}  Kd6 {[%clk 0:00:11]} 61. c7 {[%clk 0:00:21]}  Kd7 {[%clk 0:00:11]} 62. Kxa7 {[%clk 0:00:21]}  Kc8 {[%clk 0:00:11]} 63. Kb6 {[%clk 0:00:20]}  Qg6+ {[%clk 0:00:11]} 64. Kb5 {[%clk 0:00:21]}  Qf5+ {[%clk 0:00:10]} 65. Kb6 {[%clk 0:00:21]}  Qe6+ {[%clk 0:00:10]} 66. Kb5 {[%clk 0:00:21]}  Qe5+ {[%clk 0:00:09]} 67. Kb6 {[%clk 0:00:22]}  Qxc7+ {[%clk 0:00:10]} 68. Kb5 {[%clk 0:00:23]}  Qb7+ {[%clk 0:00:10]} 69. Kc5 {[%clk 0:00:21]}  Qc7+ {[%clk 0:00:09]} 70. Kb5 {[%clk 0:00:21]}  Qe5+ {[%clk 0:00:09]} 71. Kb6 {[%clk 0:00:21]}  Qd6+ {[%clk 0:00:09]} 72. Kb5 {[%clk 0:00:21]}  Kb7 {[%clk 0:00:09]} 73. Ka4 {[%clk 0:00:17]}  Ka6 {[%clk 0:00:09]} 74. Kb3 {[%clk 0:00:16]}  Qc5 {[%clk 0:00:09]} 75. Ka4 {[%clk 0:00:15]}  Qxa5+ {[%clk 0:00:10]} 76. Kb3 {[%clk 0:00:16]}  Qf5 {[%clk 0:00:09]} 0-1


[Site "https://www.chess.com"]

[Event "Titled Tuesday Blitz January 17 Early 2023"]
[White "Samaganova, Aleksandra"]
[Black "Ho, In Hei Henry"]
[WhiteFideId "13800221"]
[BlackFideId "6002552"]
[WhiteElo "1856"]
[BlackElo "1735"]
[Result "1-0"]
[Round "04"]
[TimeControl "180+2"]
[Date "2023.01.17"]
[WhiteClock "0:00:04"]
[BlackClock "0:00:06"]

1. c4 {[%clk 0:03:00]}  c5 {[%clk 0:02:58]} 2. Nc3 {[%clk 0:03:00]}  Nc6 {[%clk 0:02:57]} 3. g3 {[%clk 0:02:59]}  Nf6 {[%clk 0:02:57]} 4. Bg2 {[%clk 0:02:57]}  g6 {[%clk 0:02:57]} 5. e3 {[%clk 0:02:56]}  Bg7 {[%clk 0:02:58]} 6. Nge2 {[%clk 0:02:56]}  e6 {[%clk 0:02:58]} 7. O-O {[%clk 0:02:56]}  O-O {[%clk 0:02:58]} 8. h3 {[%clk 0:02:48]}  d5 {[%clk 0:02:57]} 9. cxd5 {[%clk 0:02:47]}  exd5 {[%clk 0:02:57]} 10. d4 {[%clk 0:02:46]}  c4 {[%clk 0:02:49]} 11. b3 {[%clk 0:02:41]}  cxb3 {[%clk 0:02:37]} 12. Qxb3 {[%clk 0:02:40]}  Na5 {[%clk 0:02:24]} 13. Qb4 {[%clk 0:02:28]}  Re8 {[%clk 0:01:51]} 14. Nf4 {[%clk 0:02:17]}  Bf8 {[%clk 0:01:46]} 15. Qa4 {[%clk 0:01:54]}  Bd7 {[%clk 0:01:43]} 16. Qd1 {[%clk 0:01:50]}  Bc6 {[%clk 0:01:40]} 17. Rb1 {[%clk 0:01:41]}  Nc4 {[%clk 0:01:39]} 18. Qb3 {[%clk 0:01:31]}  Rc8 {[%clk 0:01:29]} 19. Re1 {[%clk 0:01:25]}  a5 {[%clk 0:01:26]} 20. Nd3 {[%clk 0:01:19]}  Bd6 {[%clk 0:01:15]} 21. Nb5 {[%clk 0:01:15]}  Bb8 {[%clk 0:01:10]} 22. Nc5 {[%clk 0:01:08]}  b6 {[%clk 0:00:43]} 23. Na6 {[%clk 0:01:03]}  Qd7 {[%clk 0:00:29]} 24. Nxb8 {[%clk 0:00:58]}  Rxb8 {[%clk 0:00:28]} 25. Nc3 {[%clk 0:00:48]}  a4 {[%clk 0:00:25]} 26. Qb4 {[%clk 0:00:45]}  b5 {[%clk 0:00:22]} 27. Qc5 {[%clk 0:00:34]}  Rec8 {[%clk 0:00:16]} 28. Kh2 {[%clk 0:00:32]}  Ba8 {[%clk 0:00:14]} 29. Qb4 {[%clk 0:00:31]}  Nd6 {[%clk 0:00:12]} 30. Ba3 {[%clk 0:00:20]}  Nfe4 {[%clk 0:00:12]} 31. Nxe4 {[%clk 0:00:16]}  Nxe4 {[%clk 0:00:12]} 32. Kg1 {[%clk 0:00:08]}  Rc2 {[%clk 0:00:10]} 33. Rb2 {[%clk 0:00:07]}  Rbc8 {[%clk 0:00:10]} 34. Reb1 {[%clk 0:00:05]}  Qf5 {[%clk 0:00:08]} 35. Bxe4 {[%clk 0:00:04]}  dxe4 {[%clk 0:00:07]} 36. Rxc2 {[%clk 0:00:04]}  Rxc2 {[%clk 0:00:06]} 37. Qf8# {[%clk 0:00:04]} 1-0


[Site "https://www.chess.com"]

[Event "Titled Tuesday Blitz January 17 Early 2023"]
[White "Nakamura, Hikaru"]
[Black "Narayanan, Srinath"]
[WhiteFideId "2016192"]
[BlackFideId "5018420"]
[WhiteElo "2775"]
[BlackElo "2559"]
[Result "1-0"]
[Round "05"]
[TimeControl "180+2"]
[Date "2023.01.17"]
[WhiteClock "0:00:09"]
[BlackClock "0:00:03"]

1. Nf3 {[%clk 0:02:53]}  d5 {[%clk 0:02:59]} 2. g3 {[%clk 0:02:53]}  g6 {[%clk 0:02:59]} 3. d4 {[%clk 0:02:47]}  Bg7 {[%clk 0:02:58]} 4. Bg2 {[%clk 0:02:48]}  Nf6 {[%clk 0:02:59]} 5. O-O {[%clk 0:02:48]}  O-O {[%clk 0:02:59]} 6. c4 {[%clk 0:02:48]}  c6 {[%clk 0:02:59]} 7. Qb3 {[%clk 0:02:48]}  a5 {[%clk 0:02:53]} 8. cxd5 {[%clk 0:02:47]}  Nxd5 {[%clk 0:02:50]} 9. Nc3 {[%clk 0:02:43]}  Nxc3 {[%clk 0:02:22]} 10. bxc3 {[%clk 0:02:42]}  a4 {[%clk 0:02:22]} 11. Qc2 {[%clk 0:02:41]}  c5 {[%clk 0:02:23]} 12. Ba3 {[%clk 0:02:29]}  cxd4 {[%clk 0:02:22]} 13. cxd4 {[%clk 0:02:28]}  Nc6 {[%clk 0:02:22]} 14. Rfd1 {[%clk 0:02:20]}  Bf5 {[%clk 0:02:22]} 15. Qc4 {[%clk 0:02:14]}  Be4 {[%clk 0:02:10]} 16. d5 {[%clk 0:01:47]}  Bxa1 {[%clk 0:02:09]} 17. Qxe4 {[%clk 0:01:47]}  Bf6 {[%clk 0:02:06]} 18. g4 {[%clk 0:01:47]}  Re8 {[%clk 0:01:59]} 19. Rd3 {[%clk 0:01:24]}  Na7 {[%clk 0:01:52]} 20. g5 {[%clk 0:01:21]}  Bg7 {[%clk 0:01:51]} 21. Ne5 {[%clk 0:01:21]}  Nb5 {[%clk 0:01:45]} 22. Nxf7 {[%clk 0:01:21]}  Qc7 {[%clk 0:01:37]} 23. Qe6 {[%clk 0:01:18]}  Qf4 {[%clk 0:00:43]} 24. Rf3 {[%clk 0:01:06]}  Nd4 {[%clk 0:00:41]} 25. Rxf4 {[%clk 0:01:04]}  Nxe6 {[%clk 0:00:41]} 26. dxe6 {[%clk 0:01:05]}  Rac8 {[%clk 0:00:31]} 27. Bxb7 {[%clk 0:00:52]}  Rc2 {[%clk 0:00:30]} 28. Bf3 {[%clk 0:00:29]}  Rxa2 {[%clk 0:00:27]} 29. Rxa4 {[%clk 0:00:30]}  Rc8 {[%clk 0:00:20]} 30. Kg2 {[%clk 0:00:29]}  Kf8 {[%clk 0:00:10]} 31. Ra7 {[%clk 0:00:27]}  Kg8 {[%clk 0:00:10]} 32. h4 {[%clk 0:00:26]}  Bd4 {[%clk 0:00:07]} 33. Ra4 {[%clk 0:00:23]}  Bc5 {[%clk 0:00:02]} 34. Bxc5 {[%clk 0:00:16]}  Rxa4 {[%clk 0:00:01]} 35. Bxe7 {[%clk 0:00:17]}  Rxh4 {[%clk 0:00:01]} 36. Nh6+ {[%clk 0:00:17]}  Kg7 {[%clk 0:00:01]} 37. Bf6+ {[%clk 0:00:18]}  Kf8 {[%clk 0:00:02]} 38. e7+ {[%clk 0:00:18]}  Ke8 {[%clk 0:00:03]} 39. Bd5 {[%clk 0:00:19]}  Rf4 {[%clk 0:00:01]} 40. Bf7+ {[%clk 0:00:18]}  Kd7 {[%clk 0:00:02]} 41. e3 {[%clk 0:00:18]}  Re4 {[%clk 0:00:02]} 42. e8=Q+ {[%clk 0:00:18]}  Rexe8 {[%clk 0:00:03]} 43. Bxe8+ {[%clk 0:00:19]}  Rxe8 {[%clk 0:00:03]} 44. Ng4 {[%clk 0:00:19]}  Ke6 {[%clk 0:00:04]} 45. Kg3 {[%clk 0:00:20]}  Kf5 {[%clk 0:00:04]} 46. f3 {[%clk 0:00:20]}  Ke6 {[%clk 0:00:04]} 47. e4 {[%clk 0:00:20]}  Kf7 {[%clk 0:00:05]} 48. Bd4 {[%clk 0:00:20]}  Ra8 {[%clk 0:00:05]} 49. Be3 {[%clk 0:00:20]}  Ra3 {[%clk 0:00:05]} 50. Bf4 {[%clk 0:00:20]}  Rb3 {[%clk 0:00:05]} 51. Be5 {[%clk 0:00:20]}  Ke6 {[%clk 0:00:05]} 52. Bf6 {[%clk 0:00:19]}  Kf7 {[%clk 0:00:06]} 53. Kf4 {[%clk 0:00:19]}  Ke6 {[%clk 0:00:06]} 54. Ne3 {[%clk 0:00:18]}  Kf7 {[%clk 0:00:05]} 55. Bd4 {[%clk 0:00:16]}  Rb4 {[%clk 0:00:04]} 56. Bc3 {[%clk 0:00:16]}  Rb3 {[%clk 0:00:05]} 57. Nd5 {[%clk 0:00:17]}  Ke6 {[%clk 0:00:04]} 58. Bg7 {[%clk 0:00:17]}  Kf7 {[%clk 0:00:04]} 59. Bh6 {[%clk 0:00:18]}  Ke6 {[%clk 0:00:03]} 60. Nf6 {[%clk 0:00:18]}  Rb7 {[%clk 0:00:03]} 61. Kg4 {[%clk 0:00:18]}  Rf7 {[%clk 0:00:03]} 62. f4 {[%clk 0:00:18]}  Kd6 {[%clk 0:00:03]} 63. Kf3 {[%clk 0:00:17]}  Ke6 {[%clk 0:00:03]} 64. Ng4 {[%clk 0:00:17]}  Kd6 {[%clk 0:00:03]} 65. Ne3 {[%clk 0:00:17]}  Ke6 {[%clk 0:00:03]} 66. Nc2 {[%clk 0:00:15]}  Kd6 {[%clk 0:00:03]} 67. Nd4 {[%clk 0:00:15]}  Kc5 {[%clk 0:00:03]} 68. Ke3 {[%clk 0:00:16]}  Kd6 {[%clk 0:00:03]} 69. Ne2 {[%clk 0:00:15]}  Ke6 {[%clk 0:00:03]} 70. Nc3 {[%clk 0:00:14]}  Kd6 {[%clk 0:00:04]} 71. Nb5+ {[%clk 0:00:15]}  Ke6 {[%clk 0:00:04]} 72. Nd4+ {[%clk 0:00:15]}  Kd6 {[%clk 0:00:04]} 73. f5 {[%clk 0:00:14]}  gxf5 {[%clk 0:00:02]} 74. exf5 {[%clk 0:00:13]}  Ke5 {[%clk 0:00:03]} 75. f6 {[%clk 0:00:14]}  Kd5 {[%clk 0:00:03]} 76. Bg7 {[%clk 0:00:11]}  Kd6 {[%clk 0:00:02]} 77. Ke4 {[%clk 0:00:11]}  Kd7 {[%clk 0:00:02]} 78. Kd5 {[%clk 0:00:10]}  Ke8 {[%clk 0:00:03]} 79. Ke6 {[%clk 0:00:10]}  Re7+ {[%clk 0:00:03]} 80. fxe7 {[%clk 0:00:09]} 1-0


[Site "https://www.chess.com"]

[Event "Titled Tuesday Blitz January 17 Early 2023"]
[White "Shimanov, Aleksandr"]
[Black "Martinez Alcantara, Jose Eduardo"]
[WhiteFideId "4198603"]
[BlackFideId "3805662"]
[WhiteElo "2581"]
[BlackElo "2619"]
[Result "1-0"]
[Round "05"]
[TimeControl "180+2"]
[Date "2023.01.17"]
[WhiteClock "0:02:07"]
[BlackClock "0:01:49"]

1. e4 {[%clk 0:03:00]}  e5 {[%clk 0:02:59]} 2. Nf3 {[%clk 0:03:00]}  Nf6 {[%clk 0:02:59]} 3. Nc3 {[%clk 0:03:00]}  Bb4 {[%clk 0:02:58]} 4. Nxe5 {[%clk 0:02:58]}  O-O {[%clk 0:02:56]} 5. Be2 {[%clk 0:02:54]}  Re8 {[%clk 0:02:55]} 6. Nd3 {[%clk 0:02:54]}  Bxc3 {[%clk 0:02:55]} 7. dxc3 {[%clk 0:02:55]}  Nxe4 {[%clk 0:02:56]} 8. O-O {[%clk 0:02:55]}  d6 {[%clk 0:02:55]} 9. Bf3 {[%clk 0:02:54]}  Nd7 {[%clk 0:02:51]} 10. Re1 {[%clk 0:02:53]}  Ndf6 {[%clk 0:02:51]} 11. c4 {[%clk 0:02:43]}  Bf5 {[%clk 0:02:44]} 12. b3 {[%clk 0:02:38]}  Qd7 {[%clk 0:02:24]} 13. Bb2 {[%clk 0:02:34]}  h6 {[%clk 0:02:24]} 14. Nf4 {[%clk 0:02:26]}  Rad8 {[%clk 0:02:12]} 15. Nd5 {[%clk 0:02:24]}  Nxd5 {[%clk 0:02:10]} 16. Qxd5 {[%clk 0:02:25]}  Ng5 {[%clk 0:01:56]} 17. Qxb7 {[%clk 0:02:18]}  Nxf3+ {[%clk 0:01:56]} 18. Qxf3 {[%clk 0:02:17]}  Bxc2 {[%clk 0:01:54]} 19. Qc3 {[%clk 0:02:16]}  Qg4 {[%clk 0:01:46]} 20. Qxc2 {[%clk 0:02:15]}  a5 {[%clk 0:01:46]} 21. h3 {[%clk 0:02:12]}  Qg5 {[%clk 0:01:47]} 22. Qc3 {[%clk 0:02:12]}  c5 {[%clk 0:01:47]} 23. Qxa5 {[%clk 0:02:11]}  Kh7 {[%clk 0:01:47]} 24. Qc3 {[%clk 0:02:11]}  f6 {[%clk 0:01:47]} 25. Rad1 {[%clk 0:02:10]}  Re5 {[%clk 0:01:47]} 26. Qd3+ {[%clk 0:02:10]}  Kg8 {[%clk 0:01:47]} 27. Bxe5 {[%clk 0:02:10]}  fxe5 {[%clk 0:01:48]} 28. b4 {[%clk 0:02:07]}  Qe7 {[%clk 0:01:49]} 29. bxc5 {[%clk 0:02:07]} 1-0


[Site "https://www.chess.com"]